fUSD/lending_fUSD_20241215
["ID","MTS","AMOUNT","RATE_DAILY","PERIOD"]
[345449210,1734264643846,-3406.0,0.00019758,3]
[345449211,1734264643856,-500.0,0.00019758,3]
[345449212,1734264643866,-503.13647425,0.00019758,3]
[345449213,1734264643876,-500.0,0.00019758,3]
[345449214,1734264643885,-500.0,0.00019758,3]
[345449215,1734264643895,-500.0,0.00019758,3]
[345449216,1734264643904,-500.0,0.00019758,3]
[345449217,1734264643913,-565.17,0.00019758,3]
[345449218,1734264643923,-252.95807559,0.00019758,3]
[345449219,1734264643932,-500.0,0.00019758,3]
[345449220,1734264643942,-500.0,0.00019758,3]
[345449221,1734264643951,-500.0,0.00019758,3]
[345449222,1734264643961,-500.0,0.00019758,3]
[345449223,1734264643971,-500.0,0.00019758,3]
[345449224,1734264643980,-500.0,0.00019758,3]
[345449225,1734264643989,-500.0,0.00019758,3]
[345449226,1734264643998,-500.0,0.00019758,3]
[345449227,1734264644007,-500.0,0.00019758,3]
[345449228,1734264644018,-500.0,0.00019758,3]
[345449229,1734264644027,-500.0,0.00019758,3]
[345449230,1734264644037,-500.0,0.00019758,3]
[345449231,1734264644046,-500.0,0.00019758,3]
[345449232,1734264644055,-870.03,0.00019758,3]
[345449233,1734264644065,-500.0,0.00019759,3]
[345449234,1734264644074,-500.0,0.00019759,3]
[345449235,1734264644083,-500.0,0.00019759,3]
[345449236,1734264644093,-500.0,0.00019759,3]
[345449237,1734264644102,-518.70008579,0.00019759,3]
[345449238,1734264644111,-500.0,0.00019759,3]
[345449239,1734264644120,-254.83,0.00019759,3]
[345449240,1734264644130,-500.0,0.00019759,3]
[345449241,1734264644139,-506.75210088,0.00019759,3]
[345449242,1734264644149,-500.0,0.00019759,3]
[345449243,1734264644158,-500.0,0.00019759,3]
[345449244,1734264644167,-239.20144513,0.00019759,3]
[345449245,1734264644176,-500.0,0.00019759,3]
[345449246,1734264644185,-500.0,0.00019759,3]
[345449247,1734264644195,-500.0,0.00019759,3]
[345449248,1734264644204,-500.67590236,0.00019759,3]
[345449249,1734264644213,-500.0,0.00019759,3]
[345449250,1734264644223,-500.0,0.00019759,3]
[345449251,1734264644232,-503.74180556,0.00019759,3]
[345449252,1734264644241,-501.21353826,0.00019759,3]
[345449253,1734264644251,-500.0,0.00019759,3]
[345449254,1734264644260,-500.0,0.00019759,3]
[345449255,1734264644270,-500.0,0.00019759,3]
[345449256,1734264644280,-500.0,0.00019759,3]
[345449257,1734264644289,-500.0,0.00019759,3]
[345449258,1734264644299,-500.0,0.00019759,3]
[345449259,1734264644308,-500.0,0.00019759,3]
[345449260,1734264644317,-500.0,0.00019759,3]
[345449261,1734264644330,-500.0,0.00019759,3]
[345449262,1734264644339,-500.0,0.00019759,3]
[345449263,1734264644348,-500.0,0.00019759,3]
[345449264,1734264644357,-500.0,0.00019759,3]
[345449265,1734264644367,-500.0,0.00019759,3]
[345449266,1734264644376,-500.0,0.00019759,3]
[345449267,1734264644386,-500.0,0.00019759,3]
[345449268,1734264644395,-506.69438535,0.00019759,3]
[345449269,1734264644405,-500.0,0.00019759,3]
[345449270,1734264644414,-500.0,0.00019759,3]
[345449271,1734264644424,-500.0,0.00019759,3]
[345449272,1734264644433,-502.1087448,0.00019759,3]
[345449273,1734264644443,-505.48989413,0.00019759,3]
[345449274,1734264644452,-503.39927343,0.00019759,3]
[345449275,1734264644462,-505.14544624,0.00019759,3]
[345449276,1734264644471,-500.0,0.00019759,3]
[345449277,1734264644480,-500.0,0.00019759,3]
[345449278,1734264644490,-500.0,0.00019759,3]
[345449279,1734264644500,-500.0,0.00019759,3]
[345449280,1734264644509,-500.0,0.00019759,3]
[345449281,1734264644523,-500.0,0.00019759,3]
[345449282,1734264644533,-500.0,0.00019759,3]
[345449283,1734264644542,-500.0,0.00019759,3]
[345449284,1734264644551,-500.0,0.00019759,3]
[345449285,1734264644561,-500.0,0.0001976,2]
[345449286,1734264644571,-5159.17335413,0.00019767,2]
[345449287,1734264644581,-635.38442384,0.00019797,2]
[345449288,1734264644590,-5159.17335413,0.000198,2]
[345449289,1734264644600,-1000.0,0.00019818,2]
[345449290,1734264644609,-500.0,0.00019818,3]
[345449291,1734264644618,-500.0,0.00019818,3]
[345449292,1734264644629,-500.0,0.00019818,3]
[345449293,1734264644639,-411.1,0.00019818,3]
[345449294,1734264644648,-500.0,0.00019818,3]
[345449295,1734264644657,-561.62,0.00019818,3]
[345449296,1734264644667,-599.26,0.00019818,3]
[345449297,1734264644676,-500.0,0.00019818,3]
[345449298,1734264644686,-500.0,0.00019818,3]
[345449299,1734264644696,-500.0,0.00019818,3]
[345449300,1734264644705,-500.0,0.00019818,3]
[345449301,1734264644714,-721.43,0.00019818,3]
[345449302,1734264644724,-500.0,0.00019818,3]
[345449303,1734264644733,-500.0,0.00019818,3]
[345449304,1734264644743,-500.0,0.00019818,3]
[345449305,1734264644752,-500.0,0.00019818,3]
[345449306,1734264644764,-500.0,0.00019818,3]
[345449307,1734264644773,-550.7,0.00019818,3]
[345449308,1734264644783,-500.0,0.00019818,3]
[345449309,1734264644793,-500.0,0.00019818,3]
[345449310,1734264644803,-500.0,0.00019818,3]
[345449311,1734264644812,-500.0,0.00019818,3]
[345449312,1734264644823,-500.0,0.00019818,3]
[345449313,1734264644832,-1031.691944,0.00019818,3]
[345449314,1734264644842,-1699.345557,0.00019818,3]
[345449315,1734264644851,-500.0,0.00019818,3]
[345449316,1734264644861,-969.84,0.00019818,3]
[345449317,1734264644871,-1930.79,0.00019818,3]
[345449318,1734264644881,-500.0,0.00019818,3]
[345449319,1734264644891,-500.0,0.00019818,3]
[345449320,1734264644901,-500.0,0.00019818,3]
[345449321,1734264644911,-500.0,0.00019818,3]
[345449322,1734264644921,-500.0,0.00019818,3]
[345449323,1734264644932,-500.0,0.00019819,3]
[345449324,1734264644942,-500.0,0.00019819,3]
[345449325,1734264644952,-479.06025801,0.00019819,3]
[345449326,1734264644974,-500.0,0.00019433,3]
[345449327,1734264644984,-20.93974199,0.00019819,3]
[345449328,1734264644995,-500.58701523,0.00019819,3]
[345449329,1734264645005,-501.69271611,0.00019819,3]
[345449330,1734264645018,-500.0,0.00019819,3]
[345449331,1734264645032,-500.0,0.00019819,3]
[345449332,1734264645042,-501.0355088,0.00019819,3]
[345449333,1734264645052,-500.0,0.00019819,3]
[345449334,1734264645062,-500.0,0.00019819,3]
[345449335,1734264645072,-387.93063799,0.00019819,3]
[345449336,1734264645084,-112.06936201,0.00019819,3]
[345449337,1734264645094,-500.0,0.00019819,3]
[345449338,1734264645103,-500.0,0.00019819,3]
[345449339,1734264645113,-500.0,0.00019819,3]
[345449340,1734264645122,-500.0,0.00019819,3]
[345449341,1734264645132,-503.26675863,0.00019819,3]
[345449342,1734264645143,-500.0,0.00019819,3]
[345449343,1734264645163,-500.0,0.00019819,3]
[345449344,1734264645186,-500.0,0.00019819,3]
[345449345,1734264645209,-500.0,0.00019819,3]
[345449346,1734264645231,-500.0,0.00019819,3]
[345449347,1734264645252,-500.0,0.00019819,3]
[345449348,1734264645278,-504.24399762,0.00019819,3]
[345449349,1734264645303,-501.76112323,0.00019819,3]
[345449350,1734264645327,-500.0,0.00019819,3]
[345449351,1734264645349,-500.0,0.00019819,3]
[345449352,1734264645365,-500.0,0.00019819,3]
[345449353,1734264645374,-500.0,0.00019819,3]
[345449354,1734264645384,-500.0,0.00019819,3]
[345449355,1734264645394,-500.0,0.00019819,3]
[345449356,1734264645404,-32.45875864,0.00019819,3]
[345449357,1734264645416,-467.54124136,0.00019819,3]
[345449358,1734264645426,-500.0,0.00019819,3]
[345449359,1734264645435,-500.0,0.00019829,3]
[345449360,1734264645445,-500.0,0.00019829,3]
[345449361,1734264645455,-300.08072301,0.00019829,3]
[345449362,1734264645484,-199.91927699,0.00019829,3]
[345449363,1734264645494,-408.58806971,0.00019829,3]
[345449364,1734264645506,-91.41193029,0.00019829,3]
[345449365,1734264645517,-183.64528971,0.00019829,3]
[345449366,1734264645528,-316.35471029,0.00019829,3]
[345449367,1734264645538,-500.0,0.00019829,3]
[345449368,1734264645548,-276.87941756,0.00019829,3]
[345449369,1734264645559,-223.12058244,0.00019829,3]
[345449370,1734264645569,-500.0,0.00019829,3]
[345449371,1734264645579,-500.0,0.00019829,3]
[345449372,1734264645589,-500.0,0.00019829,3]
[345449373,1734264645598,-500.0,0.00019829,3]
[345449374,1734264645608,-500.0,0.00019829,3]
[345449375,1734264645617,-500.0,0.00019829,3]
[345449376,1734264645627,-500.0,0.00019829,3]
[345449377,1734264645636,-326.75232541,0.00019829,3]
[345449378,1734264645646,-589.18,0.00019829,3]
[345449379,1734264645655,-498.44536815,0.00019829,3]
[345449380,1734264645667,-1.55463185,0.00019829,3]
[345449381,1734264645677,-500.0,0.00019829,3]
[345449382,1734264645687,-304.88033805,0.00019829,3]
[345449383,1734264645700,-195.11966195,0.00019829,3]
[345449384,1734264645709,-479.76522241,0.00019829,3]
[345449385,1734264645721,-20.23477759,0.00019829,3]
[345449386,1734264645730,-500.0,0.00019829,3]
[345449387,1734264645739,-193.93896501,0.00019829,3]
[345449388,1734264645751,-306.06103499,0.00019829,3]
[345449389,1734264645761,-500.0,0.00019829,3]
[345449390,1734264645771,-500.0,0.00019829,3]
[345449391,1734264645780,-500.0,0.00019829,3]
[345449392,1734264645789,-500.0,0.00019829,3]
[345449393,1734264645799,-500.0,0.00019829,3]
[345449394,1734264645808,-500.0,0.00019829,3]
[345449395,1734264645818,-500.0,0.00019829,3]
[345449396,1734264645827,-501.12004038,0.00019829,3]
[345449397,1734264645836,-504.8120371,0.00019829,3]
[345449398,1734264645846,-500.0,0.00019829,3]
[345449399,1734264645855,-500.0,0.00019829,3]
[345449401,1734264645864,-500.0,0.00019829,3]
[345449403,1734264645875,-500.0,0.00019829,3]
[345449404,1734264645884,-500.0,0.00019829,3]
[345449405,1734264645893,-500.78096713,0.00019829,3]
[345449406,1734264645902,-501.4341629,0.00019829,3]
[345449407,1734264645912,-208.80700827,0.00019829,3]
[345449408,1734264645921,-498.750925,0.00019829,3]
[345449409,1734264645931,-563.21,0.00019829,3]
[345449410,1734264645941,-500.0,0.00019829,3]
[345449411,1734264645951,-500.0,0.00019829,3]
[345449412,1734264645960,-500.0,0.00019829,3]
[345449414,1734264645970,-413.24256851,0.00019829,3]
[345449416,1734264645979,-500.0,0.00019829,3]
[345449418,1734264645989,-500.0,0.00019829,3]
[345449420,1734264645998,-500.0,0.00019829,3]
[345449422,1734264646008,-500.0,0.00019829,3]
[345449424,1734264646020,-500.0,0.00019829,3]
[345449426,1734264646074,-500.0,0.00019829,3]
[345449427,1734264646084,-500.0,0.00019829,3]
[345449428,1734264646096,-1378.84,0.00019829,30]
[345449429,1734264646105,-500.0,0.00019829,3]
[345449430,1734264646115,-501.78351251,0.00019829,3]
[345449431,1734264646124,-500.0,0.00019829,3]
[345449432,1734264646134,-509.71652617,0.00019829,3]
[345449433,1734264646144,-500.0,0.00019829,3]
[345449434,1734264646154,-161.18679765,0.00019829,3]
[345449435,1734264646164,-500.0,0.00019829,3]
[345449436,1734264646173,-588.23,0.00019829,3]
[345449437,1734264646183,-500.0,0.00019829,3]
[345449438,1734264646192,-500.0,0.00019829,3]
[345449439,1734264646201,-508.68829723,0.00019829,3]
[345449440,1734264646210,-500.0,0.00019829,3]
[345449441,1734264646220,-516.96692812,0.00019829,3]
[345449442,1734264646229,-500.0,0.00019829,3]
[345449443,1734264646239,-500.0,0.00019829,3]
[345449444,1734264646248,-500.0,0.00019829,3]
[345449445,1734264646258,-616.38,0.00019829,3]
[345449446,1734264646270,-527.92,0.00019829,3]
[345449447,1734264646279,-500.0,0.00019829,3]
[345449448,1734264646289,-256.75,0.00019829,3]
[345449449,1734264646298,-500.0,0.00019829,3]
[345449450,1734264646308,-5818.33,0.00019829,3]
[345449451,1734264646318,-500.0,0.00019829,3]
[345449452,1734264646332,-500.0,0.00019829,3]
[345449453,1734264646342,-419.28219786,0.00019829,3]
[345449454,1734264646588,-500.0,0.00019432,3]
[345449455,1734264646598,-113.59639175,0.00019738,3]
[345449456,1734264646609,-386.40360825,0.00019738,3]
[345449457,1734264646618,-500.0,0.00019757,3]
[345449458,1734264646628,-500.0,0.00019818,3]
[345449459,1734264646637,-80.71780214,0.00019829,3]
[345449460,1734264646646,-500.0,0.00019829,3]
[345449461,1734264646655,-500.0,0.00019829,3]
[345449462,1734264646665,-500.0,0.00019829,3]
[345449463,1734264646675,-500.0,0.00019829,3]
[345449464,1734264646684,-174.12858961,0.00019829,3]
[345449465,1734264646695,-325.87141039,0.00019829,3]
[345449466,1734264646706,-779.73031563,0.00019829,3]
[345449467,1734264646717,-904.78968437,0.00019829,3]
[345449468,1734264646726,-67.83863663,0.00019829,3]
[345449469,1734264646743,-318.70739198,0.00019829,3]
[345449470,1734264646755,-500.0,0.00019829,3]
[345449471,1734264646766,-814.19,0.00019829,3]
[345449472,1734264646775,-500.0,0.00019829,3]
[345449473,1734264646786,-502.20045713,0.00019829,3]
[345449474,1734264646795,-500.0,0.00019829,3]
[345449475,1734264646806,-502.13004773,0.00019829,3]
[345449476,1734264646815,-500.0,0.00019829,3]
[345449477,1734264646824,-500.60601317,0.00019829,3]
[345449478,1734264646833,-500.0,0.00019829,3]
[345449479,1734264646842,-500.0,0.00019829,3]
[345449480,1734264646852,-405.20879976,0.00019829,3]
[345449481,1734264646862,-500.0,0.00019829,3]
[345449482,1734264646872,-500.0,0.00019829,3]
[345449483,1734264646881,-500.0,0.00019829,3]
[345449484,1734264646890,-500.0,0.00019829,3]
[345449485,1734264646899,-634.55,0.00019829,3]
[345449486,1734264646908,-500.0,0.00019829,3]
[345449487,1734264646918,-500.0,0.00019829,3]
[345449488,1734264646927,-500.0,0.00019829,3]
[345449489,1734264646937,-500.0,0.00019829,3]
[345449490,1734264646946,-500.0,0.00019829,3]
[345449491,1734264646955,-500.0,0.00019829,3]
[345449492,1734264646964,-500.0,0.00019829,3]
[345449493,1734264646973,-500.0,0.00019829,3]
[345449494,1734264646982,-500.0,0.00019829,3]
[345449495,1734264646991,-500.0,0.00019829,3]
[345449496,1734264647001,-500.0,0.00019829,3]
[345449497,1734264647009,-500.0,0.00019829,3]
[345449498,1734264647021,-500.0,0.00019829,3]
[345449499,1734264647030,-755.33,0.00019829,3]
[345449500,1734264647039,-191.54,0.00019829,3]
[345449501,1734264647048,-500.0,0.00019829,3]
[345449502,1734264647056,-1139.23,0.00019829,3]
[345449503,1734264647066,-500.0,0.00019829,3]
[345449504,1734264647077,-337.56325188,0.00019829,3]
[345449505,1734264647087,-500.0,0.00019829,3]
[345449506,1734264647096,-525.81075172,0.00019829,3]
[345449507,1734264647106,-1071.01,0.00019829,3]
[345449508,1734264647116,-501.00731327,0.00019829,3]
[345449509,1734264647125,-500.0,0.00019829,3]
[345449510,1734264647135,-907.33,0.00019829,3]
[345449511,1734264647144,-2708.43,0.00019829,3]
[345449512,1734264647154,-500.0,0.00019829,3]
[345449513,1734264647163,-500.0,0.00019829,3]
[345449514,1734264647172,-266.90273619,0.00019829,3]
[345449515,1734264647182,-500.0,0.00019829,3]
[345449516,1734264647192,-500.0,0.00019829,3]
[345449517,1734264647201,-704.42,0.00019829,3]
[345449518,1734264647210,-500.0,0.00019829,3]
[345449519,1734264647219,-500.0,0.00019829,3]
[345449520,1734264647228,-670.64,0.00019829,3]
[345449521,1734264647237,-2242.04,0.00019829,3]
[345449522,1734264647246,-500.0,0.00019829,3]
[345449523,1734264647255,-724.31,0.00019829,3]
[345449524,1734264647268,-500.0,0.00019829,3]
[345449525,1734264647278,-500.0,0.00019829,3]
[345449526,1734264647287,-500.0,0.00019829,3]
[345449527,1734264647297,-500.0,0.0001983,3]
[345449528,1734264647307,-500.0,0.0001983,3]
[345449529,1734264647316,-500.0,0.0001983,3]
[345449530,1734264647328,-500.0,0.0001983,3]
[345449531,1734264647338,-500.0,0.0001983,3]
[345449532,1734264647347,-500.0,0.0001983,3]
[345449533,1734264647357,-500.0,0.0001983,3]
[345449534,1734264647369,-500.0,0.0001983,3]
[345449535,1734264647378,-500.0,0.0001983,3]
[345449536,1734264647388,-500.0,0.0001983,3]
[345449537,1734264647399,-500.0,0.0001983,3]
[345449538,1734264647409,-500.0,0.0001983,3]
[345449539,1734264647419,-500.0,0.0001983,3]
[345449540,1734264647429,-500.0,0.0001983,3]
[345449541,1734264647440,-500.0,0.0001983,3]
[345449542,1734264647449,-500.0,0.0001983,3]
[345449543,1734264647459,-500.0,0.0001983,3]
[345449544,1734264647473,-500.0,0.0001983,3]
[345449545,1734264647490,-500.0,0.0001983,3]
[345449546,1734264647501,-500.0,0.0001983,3]
[345449547,1734264647511,-339.48962699,0.0001983,3]
[345449548,1734264647524,-500.0,0.0001983,3]
[345449549,1734264647533,-500.0,0.0001983,3]
[345449550,1734264647542,-500.0,0.0001983,3]
[345449551,1734264647552,-500.0,0.0001983,3]
[345449552,1734264647561,-500.0,0.0001983,3]
[345449553,1734264647571,-500.0,0.0001983,3]
[345449554,1734264647580,-500.0,0.0001983,3]
[345449555,1734264647589,-500.0,0.0001983,3]
[345449556,1734264647598,-500.0,0.0001983,3]
[345449557,1734264647608,-500.0,0.0001983,3]
[345449558,1734264647617,-500.0,0.0001983,3]
[345449559,1734264647626,-500.0,0.0001983,3]
[345449560,1734264647635,-500.0,0.0001983,3]
[345449561,1734264647645,-500.0,0.0001983,3]
[345449562,1734264647654,-500.0,0.0001983,3]
[345449563,1734264647663,-500.0,0.0001983,3]
[345449564,1734264647673,-500.0,0.0001983,3]
[345449565,1734264647682,-511.72924381,0.0001983,3]
[345449566,1734264647691,-5159.17335413,0.00019833,2]
[345449567,1734264647701,-500.0,0.00019837,2]
[345449568,1734264647710,-500.0,0.00019839,3]
[345449569,1734264647720,-500.0,0.00019839,3]
[345449570,1734264647729,-500.0,0.00019839,3]
[345449571,1734264647739,-500.0,0.00019839,3]
[345449572,1734264647749,-500.0,0.00019839,3]
[345449573,1734264647759,-500.0,0.00019839,3]
[345449574,1734264647770,-500.0,0.00019839,3]
[345449575,1734264647779,-500.0,0.00019839,3]
[345449576,1734264647789,-500.0,0.00019839,3]
[345449577,1734264647799,-500.0,0.00019839,3]
[345449578,1734264647809,-500.0,0.00019839,3]
[345449579,1734264647819,-421.42586796,0.00019839,3]
[345449580,1734264647829,-500.0,0.00019839,3]
[345449581,1734264647838,-500.0,0.00019839,3]
[345449582,1734264647848,-500.0,0.00019839,3]
[345449583,1734264647858,-500.0,0.00019839,3]
[345449584,1734264647867,-500.0,0.00019839,3]
[345449585,1734264647876,-500.0,0.00019839,3]
[345449586,1734264647886,-500.0,0.00019839,3]
[345449587,1734264647896,-500.0,0.00019839,3]
[345449588,1734264647905,-500.0,0.00019839,3]
[345449589,1734264647915,-500.0,0.00019839,3]
[345449590,1734264647925,-500.0,0.00019839,3]
[345449591,1734264647935,-500.0,0.00019854,3]
[345449592,1734264647945,-500.0,0.00019854,3]
[345449593,1734264647954,-500.0,0.00019854,3]
[345449594,1734264647964,-297.62179479,0.00019854,3]
[345449595,1734264647973,-500.0,0.00019854,3]
[345449596,1734264647982,-500.0,0.00019854,3]
[345449597,1734264647991,-163.56623964,0.00019854,3]
[345449598,1734264648001,-500.0,0.00019854,3]
[345449599,1734264648011,-500.0,0.00019854,3]
[345449600,1734264648026,-500.0,0.00019854,3]
[345449601,1734264648039,-500.0,0.00019854,3]
[345449602,1734264648049,-500.0,0.00019854,3]
[345449603,1734264648059,-500.0,0.00019854,3]
[345449604,1734264648069,-500.0,0.00019854,3]
[345449605,1734264648079,-500.0,0.00019854,3]
[345449606,1734264648089,-500.0,0.00019854,3]
[345449607,1734264648098,-500.0,0.00019854,3]
[345449608,1734264648108,-500.0,0.00019854,3]
[345449609,1734264648118,-537.94,0.00019854,3]
[345449610,1734264648128,-500.0,0.00019854,3]
[345449611,1734264648138,-500.0,0.00019854,3]
[345449612,1734264648148,-500.0,0.00019854,3]
[345449613,1734264648158,-500.0,0.00019854,3]
[345449614,1734264648168,-500.0,0.00019854,3]
[345449615,1734264648178,-500.0,0.00019854,3]
[345449616,1734264648189,-500.0,0.00019854,3]
[345449617,1734264648199,-500.0,0.00019854,3]
[345449618,1734264648209,-500.0,0.00019854,3]
[345449619,1734264648219,-500.0,0.00019854,3]
[345449620,1734264648229,-500.0,0.00019854,3]
[345449621,1734264648238,-500.0,0.00019854,3]
[345449622,1734264648248,-500.0,0.00019854,3]
[345449623,1734264648258,-500.0,0.00019854,3]
[345449624,1734264648270,-500.0,0.00019854,3]
[345449625,1734264648281,-446.09723453,0.00019854,3]
[345449626,1734264648291,-500.0,0.00019854,3]
[345449627,1734264648301,-500.0,0.00019854,3]
[345449628,1734264648311,-298.85723868,0.00019866,3]
[345449629,1734264648321,-500.0,0.00019866,3]
[345449630,1734264648335,-500.0,0.00019866,3]
[345449631,1734264648345,-500.0,0.00019866,3]
[345449632,1734264648355,-500.0,0.00019866,3]
[345449633,1734264648366,-500.0,0.00019866,3]
[345449634,1734264648376,-500.0,0.00019866,3]
[345449635,1734264648386,-500.0,0.00019866,3]
[345449636,1734264648396,-500.0,0.00019866,3]
[345449637,1734264648409,-500.0,0.00019866,3]
[345449638,1734264648419,-500.0,0.00019866,3]
[345449639,1734264648429,-177.41,0.00019866,3]
[345449640,1734264648439,-500.0,0.00019866,3]
[345449641,1734264648449,-558.47290888,0.00019866,3]
[345449642,1734264648459,-466.74289183,0.00019866,3]
[345449643,1734264648469,-500.0,0.00019866,3]
[345449644,1734264648484,-5159.17335413,0.00019867,2]
[345449645,1734264648494,-500.0,0.00019874,3]
[345449646,1734264648504,-500.0,0.00019874,3]
[345449647,1734264648514,-500.0,0.00019874,3]
[345449648,1734264648525,-500.0,0.00019874,3]
[345449649,1734264648535,-561.62,0.00019874,3]
[345449650,1734264648546,-599.26,0.00019874,3]
[345449651,1734264648556,-500.0,0.00019874,3]
[345449652,1734264648567,-500.0,0.00019874,3]
[345449653,1734264648577,-500.0,0.00019874,3]
[345449654,1734264648587,-500.0,0.00019874,3]
[345449655,1734264648597,-721.43,0.00019874,3]
[345449656,1734264648610,-500.0,0.00019874,3]
[345449657,1734264648620,-500.0,0.00019874,3]
[345449658,1734264648630,-500.0,0.00019874,3]
[345449659,1734264648640,-500.0,0.00019874,3]
[345449660,1734264648650,-500.0,0.00019874,3]
[345449661,1734264648661,-550.7,0.00019874,3]
[345449662,1734264648671,-500.0,0.00019874,3]
[345449663,1734264648681,-500.0,0.00019874,3]
[345449664,1734264648691,-500.0,0.00019874,3]
[345449665,1734264648701,-500.0,0.00019874,3]
[345449666,1734264648711,-500.0,0.00019874,3]
[345449667,1734264648720,-1031.691944,0.00019874,3]
[345449668,1734264648730,-1699.345557,0.00019874,3]
[345449669,1734264648739,-500.0,0.00019874,3]
[345449670,1734264648749,-969.84,0.00019874,3]
[345449671,1734264648758,-1930.79,0.00019874,3]
[345449672,1734264648767,-500.0,0.00019874,3]
[345449673,1734264648778,-500.0,0.00019874,3]
[345449674,1734264648788,-500.0,0.00019874,3]
[345449675,1734264648798,-500.0,0.00019874,3]
[345449676,1734264648808,-484.52101045,0.00019874,3]
[345449677,1734264648818,-500.0,0.00019874,3]
[345449678,1734264648828,-1426.84,0.00019875,3]
[345449679,1734264648848,-500.0,0.00019875,3]
[345449680,1734264648858,-500.0,0.00019875,3]
[345449681,1734264648868,-500.0,0.00019875,3]
[345449682,1734264648878,-500.0,0.00019875,3]
[345449683,1734264648888,-500.0,0.00019875,3]
[345449684,1734264648899,-500.0,0.00019875,3]
[345449685,1734264648909,-500.0,0.00019875,3]
[345449686,1734264648918,-500.0,0.00019875,3]
[345449687,1734264648928,-500.0,0.00019875,3]
[345449688,1734264648938,-500.0,0.00019875,3]
[345449689,1734264648948,-505.55921034,0.00019875,3]
[345449690,1734264648958,-500.0,0.00019875,3]
[345449691,1734264648968,-500.0,0.00019875,3]
[345449692,1734264648978,-500.0,0.00019875,3]
[345449693,1734264648987,-500.0,0.00019875,3]
[345449694,1734264648997,-508.73905816,0.00019875,3]
[345449695,1734264649007,-500.0,0.00019875,3]
[345449696,1734264649018,-539.04864167,0.00019875,3]
[345449697,1734264649028,-186.96549783,0.00019875,3]
[345449698,1734264649038,-500.0,0.00019875,3]
[345449699,1734264649047,-500.0,0.00019875,3]
[345449700,1734264649057,-511.66841192,0.00019875,3]
[345449701,1734264649068,-516.37867646,0.00019875,3]
[345449702,1734264649078,-512.69764715,0.00019875,3]
[345449703,1734264649088,-500.0,0.00019875,3]
[345449704,1734264649099,-528.67321222,0.00019875,3]
[345449705,1734264649110,-532.75154017,0.00019875,3]
[345449706,1734264649120,-500.0,0.00019875,3]
[345449707,1734264649130,-500.0,0.00019875,2]
[345449708,1734264649140,-500.0,0.00019875,3]
[345449709,1734264649151,-500.0,0.00019875,3]
[345449710,1734264649162,-357.77250783,0.00019875,3]
[345449711,1734264649173,-500.0,0.00019875,3]
[345449712,1734264649183,-513.5,0.00019875,3]
[345449713,1734264649193,-500.0,0.00019875,3]
[345449714,1734264649203,-154.00350304,0.00019875,3]
[345449715,1734264649214,-525.65233978,0.00019875,3]
[345449716,1734264649224,-500.0,0.00019875,3]
[345449717,1734264649234,-500.0,0.00019875,3]
[345449718,1734264649245,-500.0,0.00019875,3]